[Event "Open Nuevo Centro. Jornada 1"]
[Site "Chess.com"]
[Date "2020.06.19"]
[Round "9"]
[White "Yeste Campos, Manuel"]
[Black "Sanchis Bon, Sergi"]
[Result "1/2-1/2"]
[WhiteElo "911"]
[BlackElo "1009"]
[TimeControl "180+2"]
[EndTime "12:14:38 PDT"]
[Termination "Partida en tablas por material insuficiente"]

1. e4 {[%clk 0:03:01.9]} 1... Nc6 {[%clk 0:02:57]} 2. Nf3 {[%clk 0:02:59.6]}
2... Nf6 {[%clk 0:02:55.8]} 3. Nc3 {[%clk 0:02:59.4]} 3... e5 {[%clk 0:02:55.7]}
4. Bc4 {[%clk 0:02:57.7]} 4... Bd6 {[%clk 0:02:51.4]} 5. O-O {[%clk 0:02:57.3]}
5... O-O {[%clk 0:02:50.1]} 6. d3 {[%clk 0:02:57.9]} 6... Bc5 {[%clk 0:02:45.4]}
7. Bg5 {[%clk 0:02:50.9]} 7... h6 {[%clk 0:02:38.6]} 8. Bh4 {[%clk 0:02:50.8]}
8... g5 {[%clk 0:02:29.7]} 9. Bg3 {[%clk 0:02:49.7]} 9... g4 {[%clk 0:02:16.7]}
10. Nxe5 {[%clk 0:02:48.7]} 10... Nxe5 {[%clk 0:02:13.1]} 11. Bxe5 {[%clk
0:02:49.3]} 11... d6 {[%clk 0:02:04.3]} 12. Bxf6 {[%clk 0:02:45.8]} 12... Qxf6
{[%clk 0:02:02.3]} 13. Nd5 {[%clk 0:02:46.2]} 13... Qh4 {[%clk 0:01:58.5]} 14.
Nxc7 {[%clk 0:02:37]} 14... Rb8 {[%clk 0:01:49.9]} 15. Nb5 {[%clk 0:02:30.2]}
15... g3 {[%clk 0:01:46.5]} 16. hxg3 {[%clk 0:02:30]} 16... Qg4 {[%clk
0:01:25.9]} 17. Qxg4+ {[%clk 0:02:15.6]} 17... Bxg4 {[%clk 0:01:08.9]} 18. d4
{[%clk 0:02:08.1]} 18... Bb6 {[%clk 0:00:51.5]} 19. Nxd6 {[%clk 0:02:02.7]}
19... Bxd4 {[%clk 0:00:45]} 20. Bd5 {[%clk 0:01:57.6]} 20... Rbd8 {[%clk
0:00:41.6]} 21. Nxb7 {[%clk 0:01:55.2]} 21... Rd7 {[%clk 0:00:30.2]} 22. Na5
{[%clk 0:01:48.3]} 22... Be6 {[%clk 0:00:21]} 23. Bxe6 {[%clk 0:01:47.4]} 23...
fxe6 {[%clk 0:00:21]} 24. Rad1 {[%clk 0:01:43.9]} 24... Rfd8 {[%clk 0:00:20.2]}
25. c3 {[%clk 0:01:38.4]} 25... Bxf2+ {[%clk 0:00:17.7]} 26. Kxf2 {[%clk
0:01:39.3]} 26... Rxd1 {[%clk 0:00:18.1]} 27. Rxd1 {[%clk 0:01:40.1]} 27... Rxd1
{[%clk 0:00:17.8]} 28. Nc4 {[%clk 0:01:39.6]} 28... Ra1 {[%clk 0:00:17.5]} 29.
a3 {[%clk 0:01:39.8]} 29... Rd1 {[%clk 0:00:16.2]} 30. e5 {[%clk 0:01:39.6]}
30... Rd8 {[%clk 0:00:16.6]} 31. g4 {[%clk 0:01:38.5]} 31... Rf8+ {[%clk
0:00:16.4]} 32. Kg3 {[%clk 0:01:39.3]} 32... Rf7 {[%clk 0:00:16.6]} 33. Kh4
{[%clk 0:01:40.1]} 33... Rg7 {[%clk 0:00:17]} 34. g3 {[%clk 0:01:39.2]} 34...
Rf7 {[%clk 0:00:17.1]} 35. g5 {[%clk 0:01:38.8]} 35... hxg5+ {[%clk 0:00:15.3]}
36. Kxg5 {[%clk 0:01:39.4]} 36... Rg7+ {[%clk 0:00:15.9]} 37. Kf4 {[%clk
0:01:40.2]} 37... Rf7+ {[%clk 0:00:16.1]} 38. Kg4 {[%clk 0:01:39.7]} 38... Rg7+
{[%clk 0:00:16.7]} 39. Kh3 {[%clk 0:01:40.3]} 39... Rh7+ {[%clk 0:00:17.2]} 40.
Kg2 {[%clk 0:01:41.3]} 40... Rf7 {[%clk 0:00:17]} 41. Nd6 {[%clk 0:01:40.6]}
41... Rd7 {[%clk 0:00:16.6]} 42. Nc8 {[%clk 0:01:35.7]} 42... Rd2+ {[%clk
0:00:16.2]} 43. Kf3 {[%clk 0:01:35.2]} 43... Rxb2 {[%clk 0:00:18.1]} 44. Nxa7
{[%clk 0:01:35.5]} 44... Rb3 {[%clk 0:00:19.3]} 45. a4 {[%clk 0:01:30.9]} 45...
Rxc3+ {[%clk 0:00:19.9]} 46. Kg2 {[%clk 0:01:31.4]} 46... Ra3 {[%clk 0:00:21.2]}
47. g4 {[%clk 0:01:29]} 47... Rxa4 {[%clk 0:00:21.2]} 48. Nc6 {[%clk 0:01:28.1]}
48... Rxg4+ {[%clk 0:00:20.5]} 49. Kf3 {[%clk 0:01:28.4]} 49... Rg5 {[%clk
0:00:20.9]} 50. Kf4 {[%clk 0:01:28.6]} 50... Rh5 {[%clk 0:00:21]} 51. Nd4 {[%clk
0:01:26.6]} 51... Rh7 {[%clk 0:00:21]} 52. Nxe6 {[%clk 0:01:27.3]} 52... Rf7+
{[%clk 0:00:21.1]} 53. Ke4 {[%clk 0:01:26.8]} 53... Re7 {[%clk 0:00:21.5]} 54.
Nf4 {[%clk 0:01:25.4]} 54... Rxe5+ {[%clk 0:00:22]} 55. Kxe5 {[%clk 0:01:25.9]}
1/2-1

[Event "Open Nuevo Centro. Jornada 1"]
[Site "Chess.com"]
[Date "2020.06.19"]
[Round "9"]
[White "Cebolla Ruiz, David"]
[Black "Camison Zornoza, Cesar"]
[Result "0-1"]
[WhiteElo "1576"]
[BlackElo "1479"]
[TimeControl "180+2"]
[EndTime "12:14:41 PDT"]
[Termination "Victoria de cczchess2019 por abandono"]

1. e4 {[%clk 0:02:39.8]} 1... Nf6 {[%clk 0:02:59.8]} 2. e5 {[%clk 0:02:40.4]}
2... Nd5 {[%clk 0:03:01]} 3. d4 {[%clk 0:02:41.4]} 3... d6 {[%clk 0:03:02.2]} 4.
exd6 {[%clk 0:02:31.1]} 4... exd6 {[%clk 0:03:02.5]} 5. Nf3 {[%clk 0:02:30.7]}
5... Be7 {[%clk 0:03:02.5]} 6. Bd3 {[%clk 0:02:27.3]} 6... O-O {[%clk
0:03:02.2]} 7. O-O {[%clk 0:02:27.6]} 7... h6 {[%clk 0:03:00.8]} 8. Bd2 {[%clk
0:02:24.5]} 8... c5 {[%clk 0:02:58.1]} 9. dxc5 {[%clk 0:02:23.4]} 9... dxc5
{[%clk 0:02:58.8]} 10. Nc3 {[%clk 0:02:24.2]} 10... Nb4 {[%clk 0:02:57.4]} 11.
Bc4 {[%clk 0:02:04.6]} 11... N8c6 {[%clk 0:02:53.1]} 12. a3 {[%clk 0:02:03.6]}
12... Na6 {[%clk 0:02:52.9]} 13. Bxa6 {[%clk 0:02:00.3]} 13... bxa6 {[%clk
0:02:53.5]} 14. Be3 {[%clk 0:02:01.2]} 14... Bf5 {[%clk 0:02:38.7]} 15. Qe2
{[%clk 0:01:02.4]} 15... Nd4 {[%clk 0:02:27]} 16. Bxd4 {[%clk 0:00:55.5]} 16...
cxd4 {[%clk 0:02:27.1]} 17. Rad1 {[%clk 0:00:55.9]} 17... Bf6 {[%clk 0:02:14.3]}
18. Qd2 {[%clk 0:00:21.5]} 18... dxc3 {[%clk 0:02:09.3]} 19. Qxd8 {[%clk
0:00:20.5]} 19... Rfxd8 {[%clk 0:02:09.7]} 20. Rxd8+ {[%clk 0:00:20.7]} 20...
Rxd8 {[%clk 0:02:10.3]} 21. bxc3 {[%clk 0:00:18.9]} 21... Bxc3 {[%clk 0:02:05]}
22. Rc1 {[%clk 0:00:12.7]} 22... Bb2 {[%clk 0:02:03.1]} 23. Rf1 {[%clk
0:00:12.3]} 23... Bxa3 {[%clk 0:02:03.7]} 24. h3 {[%clk 0:00:11.9]} 24... Bxc2
{[%clk 0:01:57.1]} 25. Kh2 {[%clk 0:00:11.8]} 25... Bd6+ {[%clk 0:01:57.1]} 26.
g3 {[%clk 0:00:11.8]} 26... Be4 {[%clk 0:01:44.4]} 27. Kg2 {[%clk 0:00:11.8]}
27... Bxf3+ {[%clk 0:01:45.1]} 28. Kxf3 {[%clk 0:00:12.6]} 28... Bc5 {[%clk
0:01:45.6]} 29. Ra1 {[%clk 0:00:12.7]} 29... Bb6 {[%clk 0:01:45.6]} 30. Rxa6
{[%clk 0:00:12.6]} 30... Rd2 {[%clk 0:01:46.1]} 31. Kg4 {[%clk 0:00:09.8]} 31...
Rxf2 {[%clk 0:01:46.8]} 32. Kh4 {[%clk 0:00:09.5]} 32... Kh7 {[%clk 0:01:41.8]}
33. g4 {[%clk 0:00:07.1]} 33... Rf3 {[%clk 0:01:35.5]} 34. g5 {[%clk 0:00:06.9]}
34... Bd8 {[%clk 0:01:27.5]} 35. Kg4 {[%clk 0:00:06.9]} 35... Rd3 {[%clk
0:01:22.2]} 36. Ra4 {[%clk 0:00:04.8]} 36... Bb6 {[%clk 0:01:19.5]} 37. Re4
{[%clk 0:00:04.7]} 37... hxg5 {[%clk 0:01:16.5]} 38. Kxg5 {[%clk 0:00:05.6]}
38... Bd8+ {[%clk 0:01:13.1]} 39. Kh5 {[%clk 0:00:06.6]} 39... g6+ {[%clk
0:01:13.4]} 40. Kg4 {[%clk 0:00:07.4]} 40... f5+ {[%clk 0:01:14.1]} 41. Kf4
{[%clk 0:00:06.7]} 41... fxe4 {[%clk 0:01:14.6]} 42. Kg4 {[%clk 0:00:08.2]}
42... a5 {[%clk 0:01:13.3]} 43. h4 {[%clk 0:00:07.2]} 43... e3 {[%clk
0:01:13.4]} 44. Kf3 {[%clk 0:00:04.8]} 44... Bb6 {[%clk 0:01:12.1]} 45. Ke2
{[%clk 0:00:04.3]} 45... Rd2+ {[%clk 0:01:12.8]} 46. Ke1 {[%clk 0:00:04.9]}
46... Rh2 {[%clk 0:01:12.3]} 47. h5 {[%clk 0:00:05.1]} 47... gxh5 {[%clk
0:01:12.2]} 48. Kf1 {[%clk 0:00:05.7]} 48... a4 {[%clk 0:01:13.3]} 49. Kg1
{[%clk 0:00:06]} 49... Rb2 {[%clk 0:01:15.2]} 50. Kf1 {[%clk 0:00:07.1]} 50...
a3 {[%clk 0:01:16.6]} 51. Kg1 {[%clk 0:00:07.1]} 51... a2 {[%clk 0:01:17.7]} 0

[Event "Open Nuevo Centro. Jornada 1"]
[Site "Chess.com"]
[Date "2020.06.19"]
[Round "9"]
[White "Perrot, Fabien "]
[Black "Ursariu, Nikolas Victor"]
[Result "1-0"]
[WhiteElo "992"]
[BlackElo "1062"]
[TimeControl "180+2"]
[EndTime "12:14:41 PDT"]
[Termination "Victoria de InspiredMinds por jaque mate"]

1. d4 {[%clk 0:03:01.9]} 1... d5 {[%clk 0:03:00.2]} 2. Nf3 {[%clk 0:03:02.4]}
2... Nf6 {[%clk 0:02:58.9]} 3. Bf4 {[%clk 0:02:58.2]} 3... Bf5 {[%clk 0:02:58]}
4. e3 {[%clk 0:02:58.7]} 4... e6 {[%clk 0:02:57]} 5. c4 {[%clk 0:02:59]} 5... c5
{[%clk 0:02:52.1]} 6. Qb3 {[%clk 0:02:51.6]} 6... Qd7 {[%clk 0:02:41.2]} 7. Nc3
{[%clk 0:02:48]} 7... cxd4 {[%clk 0:02:30.8]} 8. Nxd4 {[%clk 0:02:39.3]} 8...
Bc5 {[%clk 0:02:25.3]} 9. Nxf5 {[%clk 0:02:34.8]} 9... O-O {[%clk 0:02:20.7]}
10. Rd1 {[%clk 0:02:18]} 10... Nc6 {[%clk 0:02:18]} 11. Be2 {[%clk 0:02:11.1]}
11... Rad8 {[%clk 0:02:15.6]} 12. Bg5 {[%clk 0:02:04]} 12... Be7 {[%clk
0:02:09.7]} 13. O-O {[%clk 0:02:02.6]} 13... exf5 {[%clk 0:02:07.7]} 14. Bxf6
{[%clk 0:01:40.2]} 14... Bxf6 {[%clk 0:02:06.2]} 15. Rxd5 {[%clk 0:01:41.4]}
15... Qc7 {[%clk 0:02:02.5]} 16. Rfd1 {[%clk 0:01:40.8]} 16... Rxd5 {[%clk
0:02:02.4]} 17. Rxd5 {[%clk 0:01:42.2]} 17... Rd8 {[%clk 0:01:59.9]} 18. Rd1
{[%clk 0:01:38.9]} 18... Rxd1+ {[%clk 0:01:58.2]} 19. Bxd1 {[%clk 0:01:38.5]}
19... Qd6 {[%clk 0:01:52.7]} 20. Qxb7 {[%clk 0:01:11.1]} 20... Bxc3 {[%clk
0:01:50.8]} 21. Qc8+ {[%clk 0:01:03.7]} 21... Nd8 {[%clk 0:01:47.5]} 22. Bb3
{[%clk 0:00:46.8]} 22... Qd2 {[%clk 0:01:45.1]} 23. h3 {[%clk 0:00:23.7]} 23...
h6 {[%clk 0:01:38.8]} 24. bxc3 {[%clk 0:00:20.6]} 24... Kh7 {[%clk 0:01:30.8]}
25. Qxf5+ {[%clk 0:00:15.4]} 25... Kg8 {[%clk 0:01:29.3]} 26. Qc2 {[%clk
0:00:09.8]} 26... Qe1+ {[%clk 0:01:15.6]} 27. Kh2 {[%clk 0:00:09.8]} 27... Ne6
{[%clk 0:01:09]} 28. Qd3 {[%clk 0:00:03.8]} 28... Qxf2 {[%clk 0:01:06.2]} 29.
Qd5 {[%clk 0:00:03]} 29... Qxg2+ {[%clk 0:01:04.1]} 30. Kxg2 {[%clk 0:00:03]}
30... Ng5 {[%clk 0:01:03]} 31. Qa8+ {[%clk 0:00:03.5]} 31... Kh7 {[%clk
0:01:02.9]} 32. Qxa7 {[%clk 0:00:05.4]} 32... Ne4 {[%clk 0:01:01.8]} 33. c5
{[%clk 0:00:07.3]} 33... Nxc3 {[%clk 0:01:02.3]} 34. c6 {[%clk 0:00:07.7]} 34...
Nd5 {[%clk 0:01:03.5]} 35. c7 {[%clk 0:00:09.6]} 35... Nxc7 {[%clk 0:01:04.1]}
36. Qxc7 {[%clk 0:00:09.9]} 36... f6 {[%clk 0:01:02.5]} 37. Qf7 {[%clk
0:00:10.1]} 37... Kh8 {[%clk 0:01:02.7]} 38. Bc2 {[%clk 0:00:09.7]} 38... f5
{[%clk 0:00:58.4]} 39. Bxf5 {[%clk 0:00:06.8]} 39... g6 {[%clk 0:00:57.6]} 40.
Qf8+ {[%clk 0:00:06.3]} 40... Kh7 {[%clk 0:00:57.3]} 41. Qe7+ {[%clk 0:00:05.5]}
41... Kh8 {[%clk 0:00:53.8]} 42. Be6 {[%clk 0:00:06.7]} 42... h5 {[%clk
0:00:50.8]} 43. Qe8+ {[%clk 0:00:06]} 43... Kg7 {[%clk 0:00:50.5]} 44. Qf7+
{[%clk 0:00:06.7]} 44... Kh6 {[%clk 0:00:51.2]} 45. a4 {[%clk 0:00:06.8]} 45...
Kg5 {[%clk 0:00:52]} 46. Qf4# {[%clk 0:00:06.6]} 1

[Event "Open Nuevo Centro. Jornada 1"]
[Site "Chess.com"]
[Date "2020.06.19"]
[Round "9"]
[White "Birnoveanu, Petru"]
[Black "Bosch Jord�, Ricard"]
[Result "1-0"]
[WhiteElo "1552"]
[BlackElo "1538"]
[TimeControl "180+2"]
[EndTime "12:14:55 PDT"]
[Termination "Victoria de piculet por tiempo"]

1. e4 {[%clk 0:03:01.9]} 1... c6 {[%clk 0:02:54.4]} 2. d4 {[%clk 0:03:01.6]}
2... d5 {[%clk 0:02:55.4]} 3. exd5 {[%clk 0:03:02.5]} 3... cxd5 {[%clk
0:02:57.3]} 4. f4 {[%clk 0:03:02.6]} 4... Nc6 {[%clk 0:02:56.8]} 5. c3 {[%clk
0:03:02.7]} 5... Bf5 {[%clk 0:02:57.2]} 6. Bd3 {[%clk 0:03:01.6]} 6... Bxd3
{[%clk 0:02:57.5]} 7. Qxd3 {[%clk 0:03:01.7]} 7... e6 {[%clk 0:02:56.2]} 8. Nf3
{[%clk 0:03:02.3]} 8... Nf6 {[%clk 0:02:56.8]} 9. Nbd2 {[%clk 0:03:00]} 9... Bd6
{[%clk 0:02:46.6]} 10. Ne5 {[%clk 0:02:58]} 10... Nd7 {[%clk 0:02:37.5]} 11. Qb5
{[%clk 0:02:45]} 11... a6 {[%clk 0:02:27.2]} 12. Qxb7 {[%clk 0:02:35.6]} 12...
Ncxe5 {[%clk 0:02:11.8]} 13. fxe5 {[%clk 0:02:32.6]} 13... Be7 {[%clk
0:02:03.6]} 14. O-O {[%clk 0:02:27.7]} 14... O-O {[%clk 0:01:58.6]} 15. Qc6
{[%clk 0:02:25.2]} 15... a5 {[%clk 0:01:29]} 16. Qa4 {[%clk 0:02:21.7]} 16...
Nb6 {[%clk 0:01:25.3]} 17. Qc2 {[%clk 0:02:22.1]} 17... Qc7 {[%clk 0:01:18.3]}
18. Nf3 {[%clk 0:02:21]} 18... f6 {[%clk 0:01:10.1]} 19. Bf4 {[%clk 0:02:12.6]}
19... fxe5 {[%clk 0:01:02.1]} 20. Bxe5 {[%clk 0:02:12]} 20... Qc6 {[%clk
0:01:01.1]} 21. Rae1 {[%clk 0:02:09.2]} 21... Nc4 {[%clk 0:00:55.7]} 22. b3
{[%clk 0:01:59.1]} 22... Nxe5 {[%clk 0:00:51.7]} 23. Nxe5 {[%clk 0:01:57.6]}
23... Rxf1+ {[%clk 0:00:48.1]} 24. Rxf1 {[%clk 0:01:51.3]} 24... Qc7 {[%clk
0:00:48.2]} 25. Qd3 {[%clk 0:01:43.8]} 25... Bf6 {[%clk 0:00:41.7]} 26. Ng4
{[%clk 0:01:44.3]} 26... Be7 {[%clk 0:00:40.5]} 27. Rf3 {[%clk 0:01:41.5]} 27...
a4 {[%clk 0:00:38.1]} 28. Qe2 {[%clk 0:01:29.8]} 28... Qd7 {[%clk 0:00:33]} 29.
Re3 {[%clk 0:01:26.9]} 29... axb3 {[%clk 0:00:32.8]} 30. axb3 {[%clk 0:01:25.9]}
30... Ra1+ {[%clk 0:00:27.4]} 31. Kf2 {[%clk 0:01:26.4]} 31... Qa7 {[%clk
0:00:18.7]} 32. Kg3 {[%clk 0:01:20.5]} 32... Qb8+ {[%clk 0:00:16.4]} 33. Kh3
{[%clk 0:01:19]} 33... Qxb3 {[%clk 0:00:16]} 34. Rxe6 {[%clk 0:01:09.3]} 34...
Qxc3+ {[%clk 0:00:14]} 35. Re3 {[%clk 0:01:10.2]} 35... Qxd4 {[%clk 0:00:05.3]}
36. Rxe7 {[%clk 0:01:09.9]} 36... Ra3+ {[%clk 0:00:05.7]} 37. g3 {[%clk
0:01:02.3]} 37... h6 {[%clk 0:00:06.6]} 38. Re8+ {[%clk 0:00:50.5]} 38... Kh7
{[%clk 0:00:07.9]} 39. Re7 {[%clk 0:00:44.3]} 39... Rb3 {[%clk 0:00:08.3]} 40.
Qe6 {[%clk 0:00:34.1]} 40... Qd1 {[%clk 0:00:04.1]} 41. Nf6+ {[%clk 0:00:32.9]}
41... Kg6 {[%clk 0:00:03.7]} 42. Nxd5+ {[%clk 0:00:31.4]} 42... Kh7 {[%clk
0:00:04.2]} 43. Qf5+ {[%clk 0:00:31.3]} 1

[Event "Open Nuevo Centro. Jornada 1"]
[Site "Chess.com"]
[Date "2020.06.19"]
[Round "9"]
[White "Aguado, Pablo Luis"]
[Black "Gracia Calvo, Andres"]
[Result "1-0"]
[WhiteElo "1685"]
[BlackElo "1822"]
[TimeControl "180+2"]
[EndTime "12:15:05 PDT"]
[Termination "Victoria de PLAD_2006 por jaque mate"]

1. d4 {[%clk 0:03:01.9]} 1... d5 {[%clk 0:03:01]} 2. c4 {[%clk 0:02:52.5]} 2...
c6 {[%clk 0:03:01.5]} 3. Nc3 {[%clk 0:02:52.8]} 3... e6 {[%clk 0:03:02.5]} 4. e4
{[%clk 0:02:53.6]} 4... dxe4 {[%clk 0:03:03.1]} 5. Nxe4 {[%clk 0:02:51.5]} 5...
Nd7 {[%clk 0:03:05]} 6. Nf3 {[%clk 0:02:51.4]} 6... Ngf6 {[%clk 0:03:05.8]} 7.
Nxf6+ {[%clk 0:02:48.6]} 7... Nxf6 {[%clk 0:03:05.7]} 8. Bd3 {[%clk 0:02:49.6]}
8... Bd6 {[%clk 0:03:05.3]} 9. O-O {[%clk 0:02:49.8]} 9... O-O {[%clk 0:03:06]}
10. b3 {[%clk 0:02:49.4]} 10... h6 {[%clk 0:03:06.7]} 11. Bb2 {[%clk 0:02:49.5]}
11... b6 {[%clk 0:03:06.1]} 12. Qc2 {[%clk 0:02:49.8]} 12... Bb7 {[%clk
0:03:06.1]} 13. Rfe1 {[%clk 0:02:50.1]} 13... Qc7 {[%clk 0:03:05.9]} 14. Qe2
{[%clk 0:02:44.6]} 14... Rad8 {[%clk 0:03:02.7]} 15. Ne5 {[%clk 0:02:43.7]}
15... c5 {[%clk 0:02:58.1]} 16. Rad1 {[%clk 0:02:25.9]} 16... cxd4 {[%clk
0:02:56.1]} 17. Bxd4 {[%clk 0:02:25]} 17... Bc5 {[%clk 0:02:53.5]} 18. Bc3
{[%clk 0:02:09.3]} 18... Ba8 {[%clk 0:02:38.3]} 19. Ng4 {[%clk 0:02:08.1]} 19...
Nxg4 {[%clk 0:02:35.8]} 20. Qxg4 {[%clk 0:02:08.3]} 20... f6 {[%clk 0:01:43]}
21. Qg6 {[%clk 0:01:58.9]} 21... e5 {[%clk 0:01:25.2]} 22. Qh7+ {[%clk
0:01:51.1]} 22... Kf7 {[%clk 0:01:24.7]} 23. Bg6+ {[%clk 0:01:52.5]} 23... Ke6
{[%clk 0:01:15.6]} 24. Bf5+ {[%clk 0:00:51.5]} 24... Kf7 {[%clk 0:01:07.6]} 25.
Bd2 {[%clk 0:00:38.2]} 25... Rh8 {[%clk 0:00:20.5]} 26. Qg6+ {[%clk 0:00:30.5]}
26... Kf8 {[%clk 0:00:20.4]} 27. b4 {[%clk 0:00:24]} 27... Bd6 {[%clk
0:00:18.9]} 28. Be3 {[%clk 0:00:16.4]} 28... Qf7 {[%clk 0:00:19]} 29. Qg4 {[%clk
0:00:15]} 29... Ke7 {[%clk 0:00:18.4]} 30. c5 {[%clk 0:00:15]} 30... bxc5 {[%clk
0:00:18.8]} 31. bxc5 {[%clk 0:00:15.7]} 31... Bc7 {[%clk 0:00:19.4]} 32. c6
{[%clk 0:00:11.7]} 32... Rxd1 {[%clk 0:00:18.8]} 33. Rxd1 {[%clk 0:00:12.4]}
33... Rd8 {[%clk 0:00:20.1]} 34. Bc5+ {[%clk 0:00:13.5]} 34... Ke8 {[%clk
0:00:20.1]} 35. Bd7+ {[%clk 0:00:14.9]} 35... Rxd7 {[%clk 0:00:19.9]} 36. cxd7+
{[%clk 0:00:16.1]} 36... Kd8 {[%clk 0:00:20.7]} 37. Qe2 {[%clk 0:00:08.5]} 37...
Bc6 {[%clk 0:00:17.6]} 38. Qa6 {[%clk 0:00:08.5]} 38... Qe6 {[%clk 0:00:10.4]}
39. Qc8# {[%clk 0:00:09.1]} 1

[Event "Open Nuevo Centro. Jornada 1"]
[Site "Chess.com"]
[Date "2020.06.19"]
[Round "9"]
[White "Granero Roca, Antonio"]
[Black "Luque Saiz, Andres"]
[Result "1-0"]
[WhiteElo "2528"]
[BlackElo "1932"]
[TimeControl "180+2"]
[EndTime "12:15:21 PDT"]
[Termination "Victoria de Somtor por abandono"]

1. Nf3 {[%clk 0:03:01.9]} 1... d5 {[%clk 0:03:00.4]} 2. g3 {[%clk 0:03:02.6]}
2... c6 {[%clk 0:03:00.5]} 3. Bg2 {[%clk 0:03:03.4]} 3... Nf6 {[%clk 0:03:02.1]}
4. O-O {[%clk 0:03:04]} 4... Bf5 {[%clk 0:03:03]} 5. d4 {[%clk 0:03:04.5]} 5...
h6 {[%clk 0:03:04]} 6. Bf4 {[%clk 0:03:03.6]} 6... Nbd7 {[%clk 0:03:03.3]} 7. c3
{[%clk 0:03:04.6]} 7... e6 {[%clk 0:03:04]} 8. h3 {[%clk 0:03:05.5]} 8... Bh7
{[%clk 0:03:04.5]} 9. g4 {[%clk 0:03:04]} 9... Be7 {[%clk 0:03:04.6]} 10. Qb3
{[%clk 0:03:04]} 10... Qb6 {[%clk 0:03:04.5]} 11. Nbd2 {[%clk 0:03:04.9]} 11...
O-O {[%clk 0:03:02.3]} 12. Rfe1 {[%clk 0:03:04.2]} 12... Ne4 {[%clk 0:03:02.5]}
13. Nxe4 {[%clk 0:03:03]} 13... Bxe4 {[%clk 0:03:04.4]} 14. Ne5 {[%clk
0:03:03.9]} 14... Nxe5 {[%clk 0:02:43.1]} 15. Bxe5 {[%clk 0:02:58.9]} 15... Bxg2
{[%clk 0:02:42.8]} 16. Kxg2 {[%clk 0:03:00]} 16... Qxb3 {[%clk 0:02:41.3]} 17.
axb3 {[%clk 0:02:57.9]} 17... a6 {[%clk 0:02:42.7]} 18. f3 {[%clk 0:02:58.6]}
18... f6 {[%clk 0:02:38]} 19. Bg3 {[%clk 0:02:58.7]} 19... Kf7 {[%clk
0:02:37.7]} 20. e4 {[%clk 0:02:59.5]} 20... g6 {[%clk 0:02:35.9]} 21. Re2 {[%clk
0:03:00.1]} 21... Rfe8 {[%clk 0:02:36]} 22. Rae1 {[%clk 0:03:00.1]} 22... Bf8
{[%clk 0:02:37]} 23. f4 {[%clk 0:02:53.7]} 23... Rad8 {[%clk 0:02:10.1]} 24. Kf3
{[%clk 0:02:53.9]} 24... h5 {[%clk 0:01:58.7]} 25. exd5 {[%clk 0:02:51.5]} 25...
exd5 {[%clk 0:01:59.3]} 26. f5 {[%clk 0:02:51.4]} 26... gxf5 {[%clk 0:01:54.6]}
27. gxf5 {[%clk 0:02:40.1]} 27... Rxe2 {[%clk 0:01:48.7]} 28. Rxe2 {[%clk
0:02:40.4]} 28... Re8 {[%clk 0:01:50.6]} 29. Rxe8 {[%clk 0:02:30.4]} 29... Kxe8
{[%clk 0:01:52.5]} 30. Bf4 {[%clk 0:02:31.1]} 30... c5 {[%clk 0:01:44.3]} 31.
dxc5 {[%clk 0:02:29.5]} 31... Bxc5 {[%clk 0:01:46.2]} 32. Kg3 {[%clk 0:02:27.1]}
32... d4 {[%clk 0:01:34.1]} 33. Kh4 {[%clk 0:02:22.4]} 33... dxc3 {[%clk
0:01:12.2]} 34. bxc3 {[%clk 0:02:22.1]} 34... b5 {[%clk 0:01:08.6]} 35. b4
{[%clk 0:02:16.2]} 35... Bf2+ {[%clk 0:01:07.7]} 36. Kxh5 {[%clk 0:02:16.5]}
36... Kf7 {[%clk 0:01:05.1]} 37. Bd2 {[%clk 0:02:14.9]} 37... Kg7 {[%clk
0:01:04]} 38. Kg4 {[%clk 0:02:15.4]} 38... Kf7 {[%clk 0:01:03.1]} 39. Kf3 {[%clk
0:02:15.9]} 39... Bh4 {[%clk 0:01:02.9]} 40. Ke4 {[%clk 0:02:16.7]} 40... Ke7
{[%clk 0:01:03.6]} 41. Kd5 {[%clk 0:02:17.2]} 41... Kd7 {[%clk 0:01:04.7]} 42.
Be3 {[%clk 0:02:14.3]} 42... Bg3 {[%clk 0:00:53.9]} 43. Bd4 {[%clk 0:02:11.1]}
43... Bh4 {[%clk 0:00:54.7]} 44. Bg1 {[%clk 0:01:52.6]} 44... Be1 {[%clk
0:00:51]} 45. Bd4 {[%clk 0:01:44.9]} 45... Bh4 {[%clk 0:00:51]} 46. Ke4 {[%clk
0:01:45.9]} 46... Ke7 {[%clk 0:00:49]} 47. Kf3 {[%clk 0:01:45.4]} 47... Kf7
{[%clk 0:00:49.5]} 48. Kg4 {[%clk 0:01:45.8]} 48... Be1 {[%clk 0:00:46.7]} 49.
h4 {[%clk 0:01:45.8]} 49... Kg7 {[%clk 0:00:44.1]} 50. h5 {[%clk 0:01:46.4]}
50... Bd2 {[%clk 0:00:44.5]} 51. Kf3 {[%clk 0:01:45.2]} 51... Kf7 {[%clk
0:00:37.4]} 52. Ke4 {[%clk 0:01:44.3]} 52... Ke7 {[%clk 0:00:36.6]} 53. Kd3
{[%clk 0:01:39.8]} 53... Bf4 {[%clk 0:00:31.4]} 54. Be3 {[%clk 0:01:40]} 54...
Be5 {[%clk 0:00:32.4]} 55. h6 {[%clk 0:01:38.9]} 55... Kf7 {[%clk 0:00:33.5]}
56. h7 {[%clk 0:01:27.5]} 56... Kg7 {[%clk 0:00:33.8]} 57. Bd4 {[%clk
0:01:24.3]} 57... Bd6 {[%clk 0:00:18.6]} 58. Bxf6+ {[%clk 0:01:19.4]} 58... Kxh7
{[%clk 0:00:19.2]} 59. Ke4 {[%clk 0:01:20.1]} 59... Kg8 {[%clk 0:00:20]} 60. Kd5
{[%clk 0:01:20.6]} 60... Bf4 {[%clk 0:00:20.2]} 61. Ke6 {[%clk 0:01:21.1]} 61...
Kf8 {[%clk 0:00:21]} 62. Be7+ {[%clk 0:01:21.3]} 62... Ke8 {[%clk 0:00:21.8]}
63. f6 {[%clk 0:01:22.2]} 1